fUST/lending_fUST_20240302
["ID","MTS","AMOUNT","RATE_DAILY","PERIOD"]
[316056162,1709341838300,-500.0,0.00020893,2]
[316056163,1709341838309,-500.0,0.00020893,2]
[316056164,1709341838318,-500.0,0.00020893,2]
[316056165,1709341838327,-880.34,0.00020893,2]
[316056166,1709341838337,-500.0,0.00020893,2]
[316056167,1709341838348,-1796.61,0.00020893,2]
[316056168,1709341838357,-875.64,0.00020893,2]
[316056169,1709341838367,-786.32,0.00020893,2]
[316056170,1709341838377,-612.38,0.00020894,2]
[316056171,1709341838390,-612.38,0.00020894,2]
[316056172,1709341838399,-500.0,0.00020894,2]
[316056173,1709341838408,-500.0,0.00020894,2]
[316056174,1709341838417,-500.0,0.00020894,2]
[316056175,1709341838426,-597.06130182,0.00020894,2]
[316056176,1709341838436,-500.0,0.00020894,2]
[316056177,1709341838445,-500.0,0.00020894,2]
[316056178,1709341838454,-500.0,0.00020894,2]
[316056179,1709341838463,-168.1003179,0.00020894,2]
[316056180,1709341838474,-544.28,0.00020894,2]
[316056181,1709341838483,-1214.98,0.00020894,2]
[316056182,1709341838493,-500.0,0.00020894,2]
[316056183,1709341838503,-500.0,0.00020894,2]
[316056184,1709341838512,-500.0,0.00020913,2]
[316056185,1709341838522,-604.69,0.00020913,2]
[316056186,1709341838531,-500.0,0.00020913,2]
[316056187,1709341838541,-500.0,0.00020913,2]
[316056188,1709341838551,-544.28,0.00020914,2]
[316056189,1709341838560,-1214.98,0.00020914,2]
[316056190,1709341838570,-880.34,0.00020914,2]
[316056191,1709341838581,-500.0,0.00020914,2]
[316056192,1709341838590,-500.0,0.00020914,2]
[316056193,1709341838600,-612.38,0.00020918,2]
[316056194,1709341838610,-500.0,0.00020918,2]
[316056195,1709341838619,-436.13807945,0.00020918,2]
[316056196,1709341838629,-500.0,0.00020918,2]
[316056197,1709341838641,-880.34,0.00020918,2]
[316056198,1709341838651,-500.0,0.00020918,2]
[316056199,1709341838660,-500.0,0.00020918,2]
[316056200,1709341838669,-612.38,0.00020919,2]
[316056201,1709341838678,-612.38,0.00020919,2]
[316056202,1709341838688,-500.0,0.00020919,2]
[316056203,1709341838697,-500.0,0.00020919,2]
[316056204,1709341838708,-544.28,0.00020919,2]
[316056205,1709341838717,-544.28,0.00020919,2]
[316056206,1709341838727,-1214.98,0.00020919,2]
[316056207,1709341838736,-1214.98,0.00020919,2]
[316056208,1709341838745,-880.34,0.00020919,2]
[316056209,1709341838754,-500.0,0.00020919,2]
[316056210,1709341838763,-500.0,0.00020919,2]
[316056211,1709341838772,-500.0,0.00020919,2]
[316056212,1709341838781,-500.0,0.00020919,2]
[316056213,1709341838791,-612.38,0.00020942,2]
[316056214,1709341838800,-500.0,0.00020942,2]
[316056215,1709341838810,-544.28,0.00020943,2]
[316056216,1709341838819,-1214.98,0.00020943,2]
[316056217,1709341838829,-880.34,0.00020943,2]
[316056218,1709341838838,-500.0,0.00020943,2]
[316056219,1709341838847,-500.0,0.00020943,2]
[316056220,1709341838856,-862.78718079,0.00020986,2]
[316056221,1709341838866,-679.65337981,0.0002099,2]
[316056222,1709341838875,-612.38,0.00020993,2]
[316056223,1709341838884,-500.0,0.00020993,2]
[316056224,1709341838897,-500.0,0.00020993,2]
[316056225,1709341838906,-500.0,0.00020993,2]
[316056226,1709341838915,-500.0,0.00020993,2]
[316056227,1709341838925,-178.44318447,0.00020993,2]
[316056228,1709341838934,-1204.35,0.00020993,2]
[316056229,1709341838944,-719.15,0.00020993,2]
[316056230,1709341838953,-651.09,0.00020993,2]
[316056231,1709341838963,-604.69,0.00020993,2]
[316056232,1709341838973,-1796.61,0.00020993,2]
[316056233,1709341838982,-831.92,0.00020993,2]
[316056234,1709341838994,-500.0,0.00020993,2]
[316056235,1709341839004,-875.64,0.00020993,2]
[316056236,1709341839014,-786.32,0.00020993,2]
[316056237,1709341839023,-500.0,0.00020993,2]
[316056239,1709341839033,-612.38,0.00020994,2]
[316056241,1709341839042,-487.98,0.00020994,2]
[316056243,1709341839051,-544.28,0.00020994,2]
[316056244,1709341839061,-500.0,0.00020994,2]
[316056246,1709341839070,-1214.98,0.00020994,2]
[316056248,1709341839079,-880.34,0.00020994,2]
[316056250,1709341839089,-880.34,0.00020994,2]
[316056251,1709341839097,-500.0,0.00020994,2]
[316056252,1709341839106,-500.0,0.00020994,2]
[316056254,1709341839115,-500.0,0.00020994,2]
[316056256,1709341839124,-500.0,0.00020994,2]
[316056258,1709341839134,-612.38,0.00020995,2]
[316056260,1709341839147,-612.38,0.00020995,2]
[316056262,1709341839158,-612.38,0.00020995,2]
[316056263,1709341839167,-612.38,0.00020995,2]
[316056264,1709341839176,-612.38,0.00020995,2]
[316056265,1709341839186,-612.42,0.00020995,2]
[316056266,1709341839195,-544.28,0.00020995,2]
[316056267,1709341839205,-1214.98,0.00020995,2]
[316056268,1709341839214,-500.0,0.00020995,2]
[316056269,1709341839223,-428.06540004,0.00020995,2]
[316056270,1709341839232,-483.84873627,0.00020995,2]
[316056271,1709341839242,-500.0,0.00020995,2]
[316056272,1709341839251,-500.0,0.00020996,2]
[316056274,1709341839260,-500.0,0.00020996,2]
[316056276,1709341839270,-500.0,0.00020996,2]
[316056278,1709341839279,-500.0,0.00020996,2]
[316056280,1709341839289,-500.0,0.00020996,2]
[316056282,1709341839300,-500.0,0.00020996,2]
[316056284,1709341839309,-1204.35,0.00020996,2]
[316056286,1709341839319,-719.15,0.00020996,2]
[316056288,1709341839328,-292.08739589,0.00020996,2]
[316056304,1709341839472,-346.26999999,0.00020996,2]
[316056314,1709341839573,-2594.58,0.00019969,2]
[316056316,1709341839583,-12.73260412,0.00020996,2]
[316056318,1709341839592,-500.0,0.00020996,2]
[316056320,1709341839602,-500.0,0.00020996,2]
[316056322,1709341839611,-604.69,0.00020996,2]
[316056324,1709341839620,-604.69,0.00020996,2]
[316056326,1709341839629,-1796.61,0.00020996,2]
[316056328,1709341839642,-1796.61,0.00020996,2]
[316056330,1709341839651,-500.0,0.00020996,2]
[316056332,1709341839660,-500.0,0.00020996,2]
[316056334,1709341839669,-831.92,0.00020996,2]
[316056336,1709341839678,-500.0,0.00020996,2]
[316056338,1709341839687,-500.0,0.00020996,2]
[316056340,1709341839696,-875.64,0.00020996,2]
[316056342,1709341839705,-875.64,0.00020996,2]
[316056344,1709341839714,-500.0,0.00020996,2]
[316056346,1709341839723,-500.0,0.00020996,2]
[316056348,1709341839732,-786.32,0.00020996,2]
[316056350,1709341839742,-786.32,0.00020996,2]
[316056352,1709341839752,-500.0,0.00020996,2]
[316056354,1709341839760,-500.0,0.00020996,2]
[316056356,1709341839769,-29449.28907893,0.00020997,2]
[316056358,1709341839781,-46540.5239251,0.00020997,2]
[316056361,1709341839790,-1204.35,0.00020997,2]
[316056363,1709341839800,-719.15,0.00020997,2]
[316056365,1709341839809,-651.09,0.00020997,2]
[316056367,1709341839818,-831.92,0.00020997,2]
[316056369,1709341839827,-4062.9695069,0.00020998,2]
[316056371,1709341839839,-14585.00041265,0.00020998,2]
[316056373,1709341839848,-300.0,0.00021,9]
[316056375,1709341839857,-2364.90063215,0.00021,2]
[316056377,1709341839865,-500.0,0.00021026,2]
[316056379,1709341839875,-500.0,0.00021026,2]
[316056381,1709341839884,-500.0,0.00021026,2]
[316056383,1709341839897,-327.42,0.00021026,2]
[316056385,1709341839905,-604.69,0.00021026,2]
[316056387,1709341839914,-1796.61,0.00021026,2]
[316056389,1709341839922,-500.0,0.00021026,2]
[316056391,1709341839931,-500.0,0.00021026,2]
[316056393,1709341839940,-875.64,0.00021026,2]
[316056395,1709341839949,-500.0,0.00021026,2]
[316056397,1709341839958,-786.32,0.00021026,2]
[316056399,1709341839971,-500.0,0.00021026,2]
[316056401,1709341839980,-544.28,0.00021027,2]
[316056403,1709341839989,-544.28,0.00021027,2]
[316056405,1709341839998,-1214.98,0.00021027,2]
[316056406,1709341840008,-1214.98,0.00021027,2]
[316056409,1709341840018,-880.34,0.00021027,2]
[316056411,1709341840027,-880.34,0.00021027,2]
[316056413,1709341840044,-880.34,0.00021027,2]
[316056415,1709341840060,-880.34,0.00021027,2]
[316056416,1709341840070,-880.34,0.00021027,2]
[316056418,1709341840080,-880.41,0.00021027,2]
[316056421,1709341840094,-500.0,0.00021027,2]
[316056422,1709341840103,-500.0,0.00021027,2]
[316056425,1709341840113,-544.28,0.00021028,2]
[316056427,1709341840122,-544.28,0.00021028,2]
[316056428,1709341840131,-544.28,0.00021028,2]
[316056431,1709341840144,-544.28,0.00021028,2]
[316056433,1709341840153,-544.45,0.00021028,2]
[316056435,1709341840161,-1214.98,0.00021028,2]
[316056437,1709341840171,-1214.98,0.00021028,2]
[316056438,1709341840179,-1214.98,0.00021028,2]
[316056441,1709341840189,-1214.98,0.00021028,2]
[316056442,1709341840199,-1215.15727978,0.00021028,2]
[316056444,1709341840208,-985.008071,0.0002105,3]
[316056446,1709341840217,-1231.16,0.00021085,2]
[316056448,1709341840226,-1231.16,0.00021085,2]
[316056450,1709341840235,-1231.16,0.00021085,2]
[316056452,1709341840244,-500.0,0.00021085,2]
[316056454,1709341840254,-500.0,0.00021085,2]
[316056456,1709341840263,-500.0,0.00021085,2]
[316056458,1709341840272,-500.0,0.00021085,2]
[316056460,1709341840281,-500.0,0.00021085,2]
[316056462,1709341840290,-523.91441129,0.00021085,2]
[316056464,1709341840300,-500.0,0.00021085,2]
[316056466,1709341840309,-500.0,0.00021085,2]
[316056468,1709341840318,-500.0,0.00021085,2]
[316056470,1709341840327,-500.0,0.00021085,2]
[316056472,1709341840336,-223.02628085,0.00021085,2]
[316056474,1709341840345,-604.69,0.00021085,2]
[316056476,1709341840356,-604.69,0.00021085,2]
[316056478,1709341840365,-604.69,0.00021085,2]
[316056480,1709341840374,-604.69,0.00021085,2]
[316056482,1709341840383,-604.69,0.00021085,2]
[316056484,1709341840398,-604.69,0.00021085,2]
[316056486,1709341840408,-604.69,0.00021085,2]
[316056488,1709341840418,-1796.61,0.00021085,2]
[316056490,1709341840428,-1796.61,0.00021085,2]
[316056492,1709341840439,-1796.61,0.00021085,2]
[316056494,1709341840448,-1796.61,0.00021085,2]
[316056497,1709341840458,-1796.61,0.00021085,2]
[316056500,1709341840467,-500.0,0.00021085,2]
[316056502,1709341840476,-296.52,0.00021085,2]
[316056504,1709341840485,-500.0,0.00021085,2]
[316056506,1709341840495,-500.0,0.00021085,2]
[316056508,1709341840504,-500.0,0.00021085,2]
[316056510,1709341840513,-500.0,0.00021085,2]
[316056512,1709341840522,-500.0,0.00021085,2]
[316056514,1709341840532,-500.0,0.00021085,2]
[316056516,1709341840541,-500.0,0.00021085,2]
[316056518,1709341840550,-875.64,0.00021085,2]
[316056520,1709341840559,-875.64,0.00021085,2]
[316056522,1709341840569,-875.64,0.00021085,2]
[316056524,1709341840578,-875.64,0.00021085,2]
[316056526,1709341840587,-875.64,0.00021085,2]
[316056528,1709341840596,-500.0,0.00021085,2]
[316056530,1709341840605,-500.0,0.00021085,2]
[316056532,1709341840614,-500.0,0.00021085,2]
[316056534,1709341840623,-500.0,0.00021085,2]
[316056535,1709341840632,-500.0,0.00021085,2]
[316056537,1709341840645,-500.0,0.00021085,2]
[316056539,1709341840654,-500.0,0.00021085,2]
[316056541,1709341840664,-786.32,0.00021085,2]
[316056543,1709341840673,-786.32,0.00021085,2]
[316056545,1709341840682,-786.32,0.00021085,2]
[316056547,1709341840691,-786.32,0.00021085,2]
[316056549,1709341840701,-786.32,0.00021085,2]
[316056551,1709341840709,-500.0,0.00021085,2]
[316056553,1709341840719,-500.0,0.00021085,2]
[316056555,1709341840729,-500.0,0.00021085,2]
[316056557,1709341840738,-500.0,0.00021085,2]
[316056559,1709341840747,-500.0,0.00021085,2]
[316056562,1709341840759,-500.0,0.00021085,2]
[316056564,1709341840767,-500.0,0.00021085,2]
[316056566,1709341840776,-1168.95,0.00021085,2]
[316056568,1709341840787,-50000.0,0.00021086,3]
[316056569,1709341840796,-50000.0,0.00021086,3]
[316056571,1709341840807,-78483.29704109,0.00021086,3]
[316056573,1709341840816,-75365.8174219,0.00021086,4]
[316056575,1709341840825,-13177.68970291,0.0002109,4]
[316056577,1709341840834,-598.31319,0.0002109,2]
[316056580,1709341840844,-598.31319,0.0002109,2]
[316056582,1709341840854,-10273.21107268,0.00021099,4]
[316056583,1709341840863,-500.0,0.00021117,2]
[316056585,1709341840872,-1204.35,0.00021117,2]
[316056587,1709341840881,-719.15,0.00021117,2]
[316056589,1709341840892,-651.09,0.00021117,2]
[316056591,1709341840902,-604.69,0.00021117,2]
[316056593,1709341840911,-1796.61,0.00021117,2]
[316056595,1709341840920,-831.92,0.00021117,2]
[316056597,1709341840929,-490.48,0.00021117,2]
[316056599,1709341840938,-875.64,0.00021117,2]
[316056601,1709341840947,-786.32,0.00021117,2]
[316056603,1709341840956,-500.0,0.00021117,2]
[316056605,1709341840967,-5472.19066019,0.00021118,2]
[316056607,1709341840976,-21052.52703553,0.00021118,2]
[316056609,1709341840985,-5565.58964162,0.00021118,2]
[316056611,1709341840996,-181.00697791,0.00021127,2]
[316056613,1709341841006,-296.75806001,0.00021141,2]
[316056615,1709341841016,-2054.32440723,0.00021141,2]
[316056617,1709341841025,-1473.97274193,0.00021141,2]
[316056619,1709341841035,-500.0,0.00021178,2]
[316056621,1709341841044,-2612.3284,0.00021185,7]
[316056623,1709341841054,-862.78718072,0.0002131,2]
[316056625,1709341841063,-862.78718072,0.00021634,2]
[316056627,1709341841075,-620.76991984,0.00021812,2]
[316056628,1709341841085,-1460.53877927,0.00021898,2]
[316056630,1709341841096,-400.24472666,0.00021918,2]
[316056633,1709341841105,-862.78718072,0.00021957,2]
[316056635,1709341841114,-327.22275751,0.0002228,2]
[316056637,1709341841124,-862.78718072,0.00022281,2]
[316056639,1709341841133,-157.14741337,0.00022355,2]
[316056640,1709341841144,-440.6731672,0.00022356,2]
[316056642,1709341841153,-153.0,0.00022356,2]
[316056644,1709341841163,-306.0,0.00022356,2]
[316056646,1709341841172,-402.7464511,0.00022356,2]
[316056648,1709341841182,-200.7008514,0.00022356,2]
[316056650,1709341841192,-153.0,0.00022356,2]
[316056652,1709341841201,-200.7008514,0.00022356,2]
[316056654,1709341841210,-153.0,0.00022356,2]
[316056656,1709341841219,-200.7008514,0.00022356,2]
[316056658,1709341841228,-153.0,0.00022356,2]
[316056660,1709341841237,-200.7008514,0.00022356,2]
[316056662,1709341841246,-153.0,0.00022356,2]
[316056665,1709341841256,-200.7008514,0.00022356,2]
[316056667,1709341841267,-493.069484,0.000225,10]
[316056669,1709341841276,-862.78718072,0.00022605,2]
[316056671,1709341841285,-153.0,0.00022878,2]
[316056673,1709341841294,-153.0,0.00022878,2]
[316056675,1709341841303,-200.7008514,0.00022878,2]
[316056677,1709341841311,-620.03849599,0.00022903,2]
[316056679,1709341841320,-862.78718072,0.00022929,2]
[316056681,1709341841330,-272.22,0.00023,7]
[316056683,1709341841338,-2788.91634066,0.00023,2]
[316056684,1709341841347,-153.0,0.00023041,2]
[316056686,1709341841357,-153.0,0.00023178,2]
[316056688,1709341841366,-153.0,0.00023178,2]
[316056690,1709341841375,-200.7008514,0.00023178,2]
[316056692,1709341841384,-200.7008514,0.00023178,2]
[316056694,1709341841396,-153.0,0.00023178,2]
[316056696,1709341841406,-153.0,0.00023178,2]
[316056698,1709341841415,-200.7008514,0.00023178,2]
[316056709,1709341841497,-153.0,0.00023178,2]
[316056711,1709341841507,-200.7008514,0.00023178,2]
[316056713,1709341841516,-217.9000002,0.00023178,2]
[316056715,1709341841526,-200.7008514,0.00023178,2]
[316056717,1709341841536,-306.0,0.00023178,2]
[316056719,1709341841546,-153.0,0.00023178,2]
[316056721,1709341841556,-257.4123915,0.00023178,2]
[316056723,1709341841565,-2550.55,0.00023218,3]
[316056725,1709341841574,-862.78718072,0.00023252,2]
[316056727,1709341841584,-153.0,0.00023278,2]
[316056729,1709341841594,-153.0,0.00023278,2]
[316056731,1709341841603,-200.7008514,0.00023278,2]
[316056733,1709341841613,-153.0,0.00023278,2]
[316056735,1709341841623,-5000.0,0.00023313,5]
[316056737,1709341841632,-5000.0,0.00023313,5]
[316056739,1709341841644,-5000.0,0.00023313,5]
[316056741,1709341841653,-151.0,0.00023313,2]
[316056743,1709341841662,-5000.0,0.00023317,5]
[316056745,1709341841673,-1000.0,0.00023323,5]
[316056747,1709341841682,-1000.0,0.00023331,5]
[316056749,1709341841692,-1724.21211612,0.00023371,2]
[316056751,1709341841701,-862.78718072,0.00023576,2]
[316056753,1709341841711,-500.0,0.00023595,2]
[316056755,1709341841720,-604.69,0.00023595,2]
[316056757,1709341841730,-1796.61,0.00023595,2]
[316056759,1709341841739,-875.64,0.00023595,2]
[316056761,1709341841748,-500.0,0.00023595,2]
[316056763,1709341841757,-640.35005205,0.00023595,2]
[316056765,1709341841766,-786.32,0.00023595,2]
[316056767,1709341841775,-500.0,0.00023595,2]
[316056769,1709341841784,-12307.46517883,0.00023596,3]
[316056771,1709341841793,-151.0,0.00023596,2]
[316056773,1709341841802,-500.0,0.00023664,2]
[316056774,1709341841811,-1204.35,0.00023664,2]
[316056776,1709341841820,-719.15,0.00023664,2]
[316056778,1709341841830,-651.09,0.00023664,2]
[316056781,1709341841839,-604.69,0.00023664,2]
[316056783,1709341841849,-1796.61,0.00023664,2]
[316056784,1709341841858,-831.92,0.00023664,2]
[316056786,1709341841867,-875.64,0.00023664,2]
[316056788,1709341841877,-786.32,0.00023664,2]
[316056790,1709341841887,-184.90895958,0.00023664,2]
[316056792,1709341841898,-1168.95,0.00023664,2]
[316056795,1709341841908,-1168.95,0.00023664,2]
[316056797,1709341841917,-1168.95,0.00023664,2]
[316056799,1709341841926,-1168.95,0.00023664,2]
[316056801,1709341841935,-1168.95,0.00023664,2]
[316056803,1709341841945,-1168.95,0.00023664,2]
[316056804,1709341841954,-50000.0,0.00023665,5]
[316056807,1709341841963,-598.31319,0.00023665,2]
[316056809,1709341841973,-598.31319,0.00023665,2]
[316056811,1709341841983,-1204.35,0.00023699,2]
[316056812,1709341841993,-719.15,0.00023699,2]
[316056814,1709341842003,-651.09,0.00023699,2]
[316056816,1709341842012,-831.92,0.00023699,2]
[316056818,1709341842022,-234.5338,0.00023879,2]
[316056820,1709341842031,-3599.999999,0.000239,2]
[316056822,1709341842040,-862.78718072,0.000239,2]
[316056824,1709341842049,-604.69,0.00023904,2]
[316056826,1709341842058,-604.69,0.00023904,2]
[316056828,1709341842067,-604.69,0.00023904,2]
[316056830,1709341842094,-604.69,0.00023904,2]
[316056832,1709341842102,-604.76,0.00023904,2]
[316056834,1709341842111,-192.40668639,0.00023952,2]
[316056835,1709341842120,-500.0,0.00023997,2]
[316056836,1709341842129,-466.54,0.00023997,2]
[316056837,1709341842137,-1796.61,0.00023997,2]
[316056838,1709341842148,-1796.61,0.00023997,2]
[316056839,1709341842157,-875.64,0.00023997,2]
[316056840,1709341842166,-875.64,0.00023997,2]
[316056841,1709341842174,-786.32,0.00023997,2]
[316056842,1709341842183,-786.32,0.00023997,2]
[316056843,1709341842192,-8341.74556447,0.00023998,2]
[316056844,1709341842201,-256.94258623,0.00023998,2]
[316056845,1709341842210,-8010.05157774,0.00023998,2]
[316056846,1709341842219,-428.57901896,0.00023998,2]
[316056847,1709341842228,-623.43272542,0.00023998,2]
[316056848,1709341842237,-2111.9879456,0.00023998,2]
[316056849,1709341842246,-538.36619156,0.00023998,2]
[316056850,1709341842255,-155.723056,0.00023998,2]
[316056851,1709341842264,-926.94993445,0.00023998,2]
[316056852,1709341842272,-20840.03860396,0.00023998,2]
[316056853,1709341842281,-179.57077703,0.00023998,2]
[316056854,1709341842290,-400.0,0.00023998,2]
[316056855,1709341842299,-179.82350877,0.00023998,2]
[316056856,1709341842307,-181.99663702,0.00023998,2]
[316056857,1709341842316,-274.0342241,0.00023998,2]
[316056858,1709341842325,-238.53127687,0.00023998,2]
[316056860,1709341842334,-415.24699773,0.00023998,2]
[316056862,1709341842343,-400.82246414,0.00023998,2]
[316056864,1709341842352,-159.92299782,0.00023998,2]
[316056866,1709341842362,-609.18566663,0.00023998,2]
[316056868,1709341842371,-179.20879215,0.00023999,2]
[316056870,1709341842380,-500.0,0.00023999,2]
[316056872,1709341842391,-500.0,0.00023999,2]
[316056874,1709341842400,-439.41632403,0.00023999,2]
[316056876,1709341842410,-500.0,0.00023999,2]
[316056878,1709341842418,-500.0,0.00023999,2]
[316056880,1709341842428,-500.0,0.00023999,2]
[316056881,1709341842437,-500.0,0.00023999,2]
[316056884,1709341842447,-500.0,0.00023999,2]
[316056885,1709341842456,-553.10293066,0.00023999,2]
[316056888,1709341842466,-500.0,0.00023999,2]
[316056890,1709341842475,-500.0,0.00023999,2]
[316056892,1709341842484,-500.0,0.00023999,2]
[316056894,1709341842494,-500.0,0.00023999,2]
[316056896,1709341842502,-500.0,0.00023999,2]
[316056897,1709341842511,-500.0,0.00023999,2]
[316056900,1709341842521,-500.0,0.00023999,2]
[316056902,1709341842530,-500.0,0.00023999,2]
[316056904,1709341842539,-540.66074134,0.00023999,2]
[316056906,1709341842548,-500.0,0.00023999,2]
[316056908,1709341842557,-379.901256,0.00023999,2]
[316056910,1709341842566,-188.32128172,0.00023999,2]
[316056912,1709341842575,-500.0,0.00023999,2]
[316056914,1709341842585,-300.0,0.00023999,2]
[316056916,1709341842594,-500.0,0.00023999,2]
[316056918,1709341842603,-500.0,0.00023999,2]
[316056920,1709341842612,-500.0,0.00023999,2]
[316056922,1709341842621,-500.0,0.00023999,2]
[316056924,1709341842632,-269.03040247,0.00023999,2]
[316056926,1709341842644,-500.0,0.00023999,2]
[316056927,1709341842654,-200.0,0.00023999,2]
[316056929,1709341842663,-257.00179428,0.00023999,2]
[316056932,1709341842672,-500.0,0.00023999,2]
[316056934,1709341842682,-500.0,0.00023999,2]
[316056936,1709341842691,-500.0,0.00023999,2]
[316056937,1709341842701,-500.0,0.00023999,2]
[316056939,1709341842710,-500.0,0.00023999,2]
[316056941,1709341842720,-500.0,0.00023999,2]
[316056943,1709341842729,-500.0,0.00023999,2]
[316056945,1709341842738,-381.71174629,0.00023999,2]
[316056947,1709341842747,-1204.35,0.00023999,2]
[316056950,1709341842757,-1204.35,0.00023999,2]
[316056953,1709341842766,-1204.35,0.00023999,2]
[316056956,1709341842775,-1204.35,0.00023999,2]
[316056959,1709341842784,-1204.35,0.00023999,2]
[316056961,1709341842794,-1204.35,0.00023999,2]
[316056963,1709341842803,-1204.35,0.00023999,2]
[316056965,1709341842812,-1204.35,0.00023999,2]
[316056967,1709341842822,-1204.35,0.00023999,2]
[316056969,1709341842831,-1204.35,0.00023999,2]
[316056971,1709341842840,-1204.35,0.00023999,2]
[316056973,1709341842849,-1204.35,0.00023999,2]
[316056975,1709341842859,-1204.35,0.00023999,2]
[316056977,1709341842868,-1204.35,0.00023999,2]
[316056979,1709341842877,-1204.35,0.00023999,2]
[316056981,1709341842886,-1204.35,0.00023999,2]
[316056983,1709341842897,-1204.35,0.00023999,2]
[316056986,1709341842907,-719.15,0.00023999,2]
[316056988,1709341842916,-719.15,0.00023999,2]
[316056990,1709341842925,-719.15,0.00023999,2]
[316056993,1709341842934,-719.15,0.00023999,2]
[316056995,1709341842944,-651.09,0.00023999,2]
[316056998,1709341842953,-719.15,0.00023999,2]
[316057001,1709341842963,-651.09,0.00023999,2]
[316057004,1709341842975,-719.15,0.00023999,2]
[316057007,1709341842985,-651.09,0.00023999,2]
[316057010,1709341842994,-719.15,0.00023999,2]
[316057012,1709341843003,-651.09,0.00023999,2]
[316057014,1709341843013,-719.15,0.00023999,2]
[316057016,1709341843022,-651.09,0.00023999,2]
[316057018,1709341843031,-719.15,0.00023999,2]
[316057021,1709341843041,-651.09,0.00023999,2]
[316057022,1709341843050,-719.15,0.00023999,2]
[316057024,1709341843060,-651.09,0.00023999,2]
[316057026,1709341843070,-651.09,0.00023999,2]
[316057029,1709341843080,-719.15,0.00023999,2]
[316057031,1709341843102,-719.15,0.00023999,2]
[316057033,1709341843112,-651.09,0.00023999,2]
[316057034,1709341843121,-719.15,0.00023999,2]
[316057036,1709341843130,-651.09,0.00023999,2]
[316057038,1709341843140,-719.15,0.00023999,2]
[316057040,1709341843149,-719.15,0.00023999,2]
[316057042,1709341843158,-651.09,0.00023999,2]
[316057045,1709341843168,-719.15,0.00023999,2]
[316057046,1709341843177,-651.09,0.00023999,2]
[316057049,1709341843186,-719.2,0.00023999,2]
[316057050,1709341843195,-651.09,0.00023999,2]
[316057052,1709341843204,-651.09,0.00023999,2]
[316057054,1709341843213,-651.09,0.00023999,2]
[316057056,1709341843223,-651.09,0.00023999,2]
[316057058,1709341843232,-651.1,0.00023999,2]
[316057060,1709341843241,-151.161043,0.00023999,2]
[316057062,1709341843250,-1796.61,0.00023999,2]
[316057064,1709341843259,-1796.61,0.00023999,2]
[316057066,1709341843269,-1796.61,0.00023999,2]
[316057068,1709341843278,-1796.61,0.00023999,2]
[316057070,1709341843287,-1796.61,0.00023999,2]
[316057072,1709341843296,-1796.76108648,0.00023999,2]
[316057074,1709341843305,-831.92,0.00023999,2]
[316057084,1709341843379,-831.92,0.00023999,2]
[316057086,1709341843399,-831.92,0.00023999,2]
[316057088,1709341843408,-831.92,0.00023999,2]
[316057090,1709341843418,-831.92,0.00023999,2]
[316057092,1709341843427,-831.92,0.00023999,2]
[316057094,1709341843436,-831.92,0.00023999,2]
[316057096,1709341843446,-831.92,0.00023999,2]